Cogmind - Beta 15 @@@ ROGUE MODE // 2025.05.23 @ 14:00:11 Player: KeKe Result: Destroyed by G-47 Trooper with Particle Gun Performance ------------- Evolutions (2) 1000 Regions Visited (3) 600 Robots Destroyed (17) 85 Value Destroyed (649) 649 Prototype IDs (0) 0 Alien Tech Used (0) 0 Bonus (0) 0 TOTAL SCORE: 2334 Bonus ------- None Cogmind --------- Core Integrity 0/550 Matter 265/300 Energy 100/100 System Corruption 0% Temperature Cool (18) Movement Rolling (120) Ox1 Location -8/Materials Parts ------- > --- POWER (1) -------- (None) > --- PROPULSION (2) --- Subdweller Monowheel > --- UTILITY (4) ------ Large Storage Unit Improved Signal Interpreter Hacking Suite > --- WEAPON (4) ------- Makeshift Hammer > --- INVENTORY (15) --- Subdweller Monowheel Subdweller Monowheel Large Storage Unit Peak State ------------ > --- POWER ------------ (None) > --- PROPULSION ------- Subdweller Monowheel > --- UTILITY ---------- Large Storage Unit Improved Sensor Array Improved Signal Interpreter Improved Light Armor Plating > --- WEAPON ----------- Gauss Rifle Heavy Battle Rifle Makeshift Hammer > --- INVENTORY -------- Subdweller Monowheel Subdweller Monowheel Large Storage Unit Hacking Suite [Rating: 24] Favorites ----------- Power Ion Engine Engine Ion Engine Propulsion Compact Wheel Wheel Compact Wheel Utility Small Storage Unit Device Disposable Heat Sink Storage Small Storage Unit Processor Improved Signal Interpreter Hackware Hacking Suite Protection Improved Light Armor Plating Weapon Autogun Energy Gun EM Pulse Gun Ballistic Gun Autogun Impact Weapon Makeshift Hammer Build | -11 -10 -10 -8 ------- Run | Yrd Mat Sub Mat Slots Evolved 4 | . . . 4 Power . | . . . . Propulsion . | . . . . Utility 2 | . . . 2 Weapon 2 | . . . 2 Parts Attached 23 | 6 . 10 7 Power 1 | 1 . . . Engine 1 | 1 . . . Core . | . . . . Reactor . | . . . . Propulsion 5 | 2 . 2 1 Treads . | . . . . Leg . | . . . . Wheel 5 | 2 . 2 1 Hover . | . . . . Flight . | . . . . Utility 7 | 1 . 1 5 Device 2 | . . 1 1 Storage 2 | 1 . . 1 Processor 1 | . . . 1 Hackware 1 | . . . 1 Protection 1 | . . . 1 Artifact . | . . . . Weapon 10 | 2 . 7 1 Energy Gun 2 | 2 . . . Energy Cannon . | . . . . Ballistic Gun 7 | . . 6 1 Ballistic Cannon . | . . . . Launcher . | . . . . Special Weapon . | . . . . Impact Weapon 1 | . . 1 . Slashing Weapon . | . . . . Piercing Weapon . | . . . . Special Melee Weapon . | . . . . Unidentified Prototypes . | . . . . Parts Lost 10 | . . 5 5 Power 1 | . . 1 . Propulsion 3 | . . 2 1 Utility 2 | . . . 2 Weapon 4 | . . 2 2 Highest Loss Streak 3 | . . 2 3 To Critical Strikes . | . . . . Average Backups 5 | . 4 6 4 Power . | . . . . Propulsion 2 | . . 3 2 Utility 1 | . 1 1 1 Weapon 1 | . 2 2 . Tool/Special . | . . . . Unused Backups 4 | . . 1 3 Power . | . . . . Propulsion 3 | . . 1 2 Utility 1 | . . . 1 Weapon . | . . . . Tool/Special . | . . . . Average Slot Usage (%) 78 | . 85 83 64 Engine 4 | . 14 3 . Wheel 23 | . 28 27 12 Device 7 | . . 9 7 Storage 12 | . 14 14 9 Processor 1 | . . . 7 Protection 1 | . . . 7 Energy Gun 5 | . 28 . . Ballistic Gun 17 | . . 26 12 Impact Weapon 2 | . . . 7 Peak Build Rating 24 | 6 7 13 24 Average Rating 11 | 3 6 10 18 On Entrance 6 | . 6 7 13 Naked Turns . | . . . . Heaviest Build 40 | 14 14 16 40 Greatest Support 36 | 26 26 36 36 Greatest Overweight (x) 1 | . . 1 1 Average Overweight (x) . | . . . . Largest Inventory Capacity 15 | 8 8 8 15 Average Capacity 9 | 6 8 8 14 Most Carried 8 | . 8 8 6 Average Carried 5 | . 4 6 4 Final Capacity 15 | 8 8 8 15 Final Carried 8 | . 8 5 3 Class Distribution -------------------- 100% | Mutant Dominant Class ---------------- Mutant | -10/Materials Mutant | -10/Subcaves Mutant | -8/Materials Resources | -11 -10 -10 -8 ----------- Run | Yrd Mat Sub Mat Matter Collected 617 | 120 93 244 160 Remotely . | . . . . Salvage Created 711 | . 226 176 309 Parts 45 | . 14 12 19 Haulers Intercepted . | . . . . Recyclers Shooed . | . . . . Parts Field Recycled . | . . . . Retrieved Matter . | . . . . Parts Self-Destructed 6 | . . 6 . Prevented . | . . . . Kills | -11 -10 -10 -8 ------- Run | Yrd Mat Sub Mat Combat Hostiles Destroyed 12 | . 3 3 6 Guns 12 | . 3 3 6 Classes Destroyed 8 | . 3 2 3 Builder 1 | . . . 1 Recycler 1 | . 1 . . Operator 1 | . 1 . . Turret 2 | . . 2 . Grunt 6 | . 3 . 3 Specialist 2 | . . . 2 Hunter 1 | . . . 1 Subdweller 3 | . . 3 . Best Kill Streak 4 | . 3 1 4 Combat Bots Only 3 | . 2 1 3 Max Kills in Single Turn 1 | . 1 1 1 Gunslinging . | . . . . Exploded . | . . . . Melee . | . . . . Uniques/NPCs Destroyed . | . . . . Combat | -11 -10 -10 -8 -------- Run | Yrd Mat Sub Mat Hostile Shots Fired 211 | . 10 101 100 Missed 59 | . 2 37 20 Hits 152 | . 8 64 80 Projectile 152 | . 8 64 80 Critical Strikes 3 | . . 1 2 Damage Taken 2094 | . 88 688 1318 Core 717 | . 33 131 553 Absorbed by Shields . | . . . . Core Remaining (%) 67 | 100 . 34 . Volleys Fired 59 | . 14 15 30 Largest 2 | . 2 2 2 Hottest 80 | . 80 80 63 Shots Fired 105 | . 28 30 47 Gun 105 | . 28 30 47 Cannon . | . . . . Launcher . | . . . . Special . | . . . . Kinetic 72 | . . 25 47 Thermal . | . . . . Explosive . | . . . . Electromagnetic 33 | . 28 5 . Robot Hit Streak 15 | . 3 9 15 Robot Miss Streak 6 | . 6 2 2 Penetration Max . | . . . . Secondary Targets 1 | . . 1 . Max Gunslinging Chain 1 | . . 1 . Shots Hit Robots 68 | . 12 23 33 Core Hits 30 | . 8 10 12 Critical Kills . | . . . . Critical Parts Destroyed . | . . . . Critical Strikes . | . . . . Melee Attacks 2 | . . 1 1 Impact 2 | . . 1 1 Slashing . | . . . . Piercing . | . . . . Sneak Attacks . | . . . . Combat Hostiles . | . . . . Follow-up Attacks . | . . . . Damage Inflicted 1217 | . 203 329 685 Guns 1190 | . 180 329 681 Cannons . | . . . . Explosions 23 | . 23 . . Melee . | . . . . Ramming 4 | . . . 4 Kinetic 988 | . . 307 681 Thermal 23 | . 23 . . Explosive . | . . . . Electromagnetic 202 | . 180 22 . Impact . | . . . . Slashing . | . . . . Piercing . | . . . . Highest Corruption . | . . . . Average Corruption . | . . . . Corruption Purged . | . . . . Corruption Blocked . | . . . . Overload Shots . | . . . . Overflow Damage . | . . . . Projectiles . | . . . . Explosions . | . . . . Melee . | . . . . Knockbacks . | . . . . Impact . | . . . . Kinetic . | . . . . Secondary . | . . . . Self-Inflicted Damage 2 | . . . 2 Shots . | . . . . Rammed 1 | . . . 1 Targets Rammed 1 | . . . 1 Kicked . | . . . . Crushed . | . . . . Highest Temperature 176 | . 176 2 18 Average Temperature 54 | . 66 2 4 Received Heat Transfer 810 | . 48 204 558 Siege Activations . | . . . . Martial Activations . | . . . . Shielding Activations . | . . . . Robots Disrupted . | . . . . Combat Hostiles . | . . . . Robots Corrupted . | . . . . Combat Hostiles . | . . . . Parts Fried 2 | . 2 . . Impact Corruptions . | . . . . Robots Melted . | . . . . Combat Hostiles . | . . . . Parts Melted . | . . . . Heat Transferred 50 | . 50 . . Parts Sabotaged . | . . . . Parts Stolen . | . . . . Parts Stripped . | . . . . Power Chain Reactions 1 | . 1 . . Alert | -11 -10 -10 -8 ------- Run | Yrd Mat Sub Mat Maximum Alert Level . | . . . . Low Security (%) 100 | 100 100 . 100 Level 1 . | . . . . Level 2 . | . . . . Level 3 . | . . . . Level 4 . | . . . . Level 5 . | . . . . High Security . | . . . . Max Security . | . . . . Peak Influence 78 | . 78 . 71 Initial . | . . . . Average 27 | . 36 . 25 Influence Increases 420 | . 108 115 197 Destroy 0b10 Robot/C 220 | . 60 40 120 Destroy 0b10 Robot/NC 15 | . 10 . 5 Destroy Leader 40 | . 20 . 20 Disable Machine 30 | . 15 . 15 Destroy Structure 10 | . 3 . 7 Lose Combat Pursuer 105 | . . 75 30 Influence Decreases 390 | . 90 133 167 Entered New Map 10 | . . 10 . Time Decay 302 | . 90 95 117 Lost Part 78 | . . 28 50 Squads Dispatched 4 | . 2 . 2 Investigation 1 | . 1 . . Extermination . | . . . . Reinforcement 3 | . 1 . 2 Assault . | . . . . Garrison . | . . . . Intercept . | . . . . Searches Triggered . | . . . . Construction Impeded . | . . . . Haulers Reinforced . | . . . . Active Scanning Responses . | . . . . Cargo Convoy Interrupts . | . . . . Stealth | -11 -10 -10 -8 --------- Run | Yrd Mat Sub Mat Distress Signals 2 | . . . 2 Communications Jammed . | . . . . Distress Signals . | . . . . Times Spotted 44 | . 8 15 21 Peak Tracking Total 12 | . 4 8 12 Tactical Retreats 2 | . . 1 1 Traps | -11 -10 -10 -8 ------- Run | Yrd Mat Sub Mat Traps Triggered 1 | . 1 . . Indirectly . | . . . . Trap Hack Attempts . | . . . . Triggered . | . . . . Disarmed . | . . . . Reprogrammed . | . . . . Reused . | . . . . Traps Extracted . | . . . . Installed . | . . . . Triggered . | . . . . Machines | -11 -10 -10 -8 ---------- Run | Yrd Mat Sub Mat Machines Disabled 2 | . 1 . 1 Max in Single Turn 1 | . 1 . 1 Machines Repaired . | . . . . Machines Dismantled . | . . . . Machines Sabotaged . | . . . . Overloaded Fab Kills . | . . . . Hacking | -11 -10 -10 -8 --------- Run | Yrd Mat Sub Mat Machines Accessed 2 | . 1 . 1 Terminals 2 | . 1 . 1 Fabricators . | . . . . Repair Stations . | . . . . Recycling Units . | . . . . Scanalyzers . | . . . . Garrison Access . | . . . . Total Hacks 8 | . 4 . 4 Successful 1 | . 1 . . Failed 7 | . 3 . 4 Catastrophic 2 | . . . 2 Database Lockouts . | . . . . Manual 8 | . 4 . 4 Terminals 8 | . 4 . 4 Fabricators . | . . . . Repair Stations . | . . . . Recycling Units . | . . . . Scanalyzers . | . . . . Garrison Access . | . . . . Terminal Hacks . | . . . . Fabricator Hacks . | . . . . Repair Station Hacks . | . . . . Recycling Unit Hacks . | . . . . Scanalyzer . | . . . . Garrison Access Hacks . | . . . . Unauthorized Hacks 1 | . 1 . . Terminals 1 | . 1 . . Botnet 1 | . 1 . . Fabricators . | . . . . Repair Stations . | . . . . Recycling Units . | . . . . Scanalyzers . | . . . . Garrison Access . | . . . . Data Cores Recovered . | . . . . Used . | . . . . Hacking Detections 2 | . 1 . 1 Full Trace Events 1 | . . . 1 Feedback Events . | . . . . Feedback Blocked . | . . . . Robot Schematics Acquired . | . . . . Robots Built . | . . . . Authchips . | . . . . Time . | . . . . Total Robot Build Rating . | . . . . Part Schematics Acquired . | . . . . Parts Built . | . . . . Authchips . | . . . . Time . | . . . . Total Part Build Rating . | . . . . Parts Repaired . | . . . . Time . | . . . . Parts Recycled . | . . . . Recycled Matter . | . . . . Retrieved Matter . | . . . . Retrieved Components . | . . . . Parts Scanalyzed . | . . . . Part Schematics Acquired . | . . . . Parts Damaged . | . . . . Bothacking | -11 -10 -10 -8 ------------ Run | Yrd Mat Sub Mat Used RIF Installer . | . . . . Robots Hacked . | . . . . Non-combat . | . . . . Combat . | . . . . Robot Hacks Applied . | . . . . Relay Couplers Released . | . . . . Fabnet Peak Effective % . | . . . . Robots Rewired . | . . . . Allies Hacked . | . . . . Hacks Repelled . | . . . . Allies | -11 -10 -10 -8 -------- Run | Yrd Mat Sub Mat Total Allies . | . . . . Largest Group . | . . . . Highest-Rated Group . | . . . . Highest-Rated Ally . | . . . . Total Orders . | . . . . Ally Attacks . | . . . . Total Damage . | . . . . Kills . | . . . . Allies Corrupted . | . . . . Allies Melted . | . . . . Intel | -11 -10 -10 -8 ------- Run | Yrd Mat Sub Mat Active Infowar (turns) 225 | . . . 225 Sensors 225 | . . . 225 Robot Analysis Total . | . . . . Derelict Logs Recovered 1 | . . 1 . Drone Launches . | . . . . Drone Recoveries . | . . . . Exploration | -11 -10 -10 -8 ------------- Run | Yrd Mat Sub Mat Turns Passed 1257 | 41 228 655 333 Spaces Moved 889 | 37 92 573 187 Core 4 | 4 . . . Treads . | . . . . Legs . | . . . . Wheels 885 | 33 92 573 187 Hover . | . . . . Flight . | . . . . Fastest Speed 50 | 50 90 90 105 Average Speed 100 | 86 90 97 115 Slowest Speed 120 | 100 90 105 120 Overloaded Moves . | . . . . Propulsion Burnouts . | . . . . Robots Hopped . | . . . . Potential Cave-ins . | . . . . Cave-ins Triggered . | . . . . Exploration Rate (%) 21 | 3 23 36 22 Regions Visited 3 Branch Regions 1 Pre-discovered Areas 2 | . . 2 . Known Exits Taken . | . . . . Unknown Exits Taken 3 | 1 1 1 . Scrap Searched 5 | . . 5 . Spaces Dug . | . . . . Terrain Destroyed 9 | . 3 . 6 Melee . | . . . . Projectile 6 | . . . 6 AOE 3 | . 3 . . Terrain Rammed . | . . . . Walls Destroyed . | . . . . Machines Disabled . | . . . . Actions | -11 -10 -10 -8 --------- Run | Yrd Mat Sub Mat Total 1148 | 42 209 641 256 Wait 149 | . 96 31 22 Move 886 | 36 91 572 187 Hop . | . . . . Pick Up 17 | . 8 6 3 Fast Attach 10 | 6 . 1 3 Attach 10 | . . 6 4 Detach . | . . . . Swap 5 | . . 4 1 Drop 9 | . . 5 4 Fire 59 | . 14 15 30 Melee 2 | . . 1 1 Ram 1 | . . . 1 Kick . | . . . . Crush . | . . . . Escape Stasis . | . . . . Rewire . | . . . . Trap . | . . . . Miscellaneous . | . . . . Route ------- -11/Scrapyard -10/Materials (discovered 3 exits: [*Mat] / [*Min] / [*Sub]) -10/Subcaves (discovered 2 exits: *Mat / [*Rec]) -8/Materials History --------- Turn | Location | Event 3 | -11/Scrapyard | Discovered new exit (range 16) 42 | -11/Scrapyard | Entered Materials 90 | -10/Materials | Discovered new exit (range 16) 112 | -10/Materials | Discovered new exit (range 10) 262 | -10/Materials | Discovered new exit (range 9) 270 | -10/Materials | Entered Subcaves 271 | -10/Subcaves | Approached by a straggling Scientist 310 | -10/Subcaves | Learned location of Zion (-6) 311 | -10/Subcaves | Build established: Mutant 438 | -10/Subcaves | Core integrity fell below 50% 576 | -10/Subcaves | Discovered new exit (range 16) 647 | -10/Subcaves | Disturbed a concealed Subdweller 742 | -10/Subcaves | Discovered new exit (range 9) 797 | -10/Subcaves | Met a Zionite searching for "candidates" 925 | -10/Subcaves | Entered Materials 925 | -8/Materials | Evolved 4 slots: Utility x2, Weapon x2 1206 | -8/Materials | Core integrity fell below 50% 1232 | -8/Materials | Core integrity fell below 20% 1240 | -8/Materials | Lost 3 parts (2u1w) 1258 | -8/Materials | Destroyed by G-47 Trooper with Particle Gun Last Messages --------------- 01132_ X-62 Marksman destroyed. 01134_ Acquired 51 matter. 01153_ K-01 Serf collects debris. 01163_ K-01 Serf destroyed. 01171_ K-01 Serf collects debris. 01175_ K-01 Serf destroyed. 01179_ Hvy. Battle Rifle destroyed. 01182_ Slammed into T-07 Excavator. 01182_ O-16 Technician: "IFF HANDSHAKE FAILED. SECURING TERMINAL." 01189_ W-25 Informer sends out distress signal. 01192_ ALERT: Hostiles spotted, dispatching reinforcements to Terminal M005. 01203_ Imp. Light Armor Plating destroyed. 01205_ Critical hit (Burn: +37). 01206_ K-01 Serf destroyed. 01206_ R-06 Scavenger collects Wheel. 01209_ Imp. Sensor Array destroyed. 01252_ Connecting with Terminal... 01252_ Current location identified: Materials Map ----- +----------------------------------------------------+ | ! # """""?????????? | | =% # """"??????????? | | #? """??????????? | | ###/### #? ??????????? | | *% # #?? ?????????? | | = # #??##+####????????? | | # ##### ##??????????? | | # #??????????? | | + #??????????? | | # #??????????? | | ######### ######???? # | | #???????# #??"" # | | #/#####???????# # "R # | | # #???????????###+## / """ # | | #/####?????????? ## # # | | ! #?????????? ## ##?###? | | % #????????? # #????? | | * #?????????"" # #????? | | #????????""" # ! #????? | | #????????""" # #????? | | #??????? ## ####### | | ##/###???########### g# # | | ## #???# / /Y # | | #" #???# """ # #g g # | | ## ##### """"" # #""gg # | | = ! " "" ####"T@ # | | #!###### """"" ???#"" !# | | ## #???? ! """???????#"" # | | ??##????? ?????# # | | ?????????########?????####### | | ????????????????????????????? | | | | | | | | | | | | | | | | | | | | | | | | | | | | | | | | | | | | | | | +----------------------------------------------------+ Best States ------------- Heat Dissipation 31 Coolant Potential 50 Energy Generation 10 Energy Capacity 250 Matter Stores 300 Matter Capacity 300 Sight Range 16 Robot Scan Range 15 Terrain Scan Density 10 Armor Coverage 150 Evasion (%) 42 Item Schematics ----------------- None Robot Schematics ------------------ None Fabricated ------------ Nothing Repaired ---------- Nothing Alien Tech Used ----------------- None Achievements -------------- None Challenges ------------ None Game ------ Seed MagneticAssaultBay Manual? 0 Play Time 00:16:45 Cumulative 83.4 hours Start 2025.05.23 @ 13:44:56 End 2025.05.23 @ 14:00:11 Sessions 1 Manual Loads 0 Difficulty Rogue Special Mode None Game No. 73 Rogue 73 Adventurer 0 Explorer 0 Win Type - Total 1 Types 1/0/0/0/0/0/0/0/0/0 Lore% 36 Gallery% 40 Achievement% 43 Wizard Run 0 Options --------- Layout 1 ASCII 0 Keyboard 0 Movement Mouse Keybinds 0 Fullscreen 2 Font 24/X11 Map View 50x35 Zoom Use 0% Tactical HUD 1 Map Filters NONE Filters NONE Steam 1 RUN: 41412544-f327-46fc-9416-7a8a79acbb22